lending/lending_fUSD_20250424
["ID","MTS","AMOUNT","RATE_DAILY","PERIOD"]
[358826948,1745479837951,-59252.66978693,0.00019986,2]
[358826949,1745479837960,-668.65185757,0.00019988,2]
[358826950,1745479837970,-151.0,0.00019988,2]
[358826951,1745479837980,-50000.0,0.0001999,2]
[358826952,1745479837990,-1217.4295604,0.0001999,2]
[358826953,1745479837999,-1217.4295604,0.0001999,2]
[358826954,1745479838008,-1217.4295604,0.0001999,2]
[358826956,1745479838018,-300.0,0.00019999,2]
[358826958,1745479838029,-500.0,0.00019999,2]
[358826960,1745479838039,-500.0,0.00019999,2]
[358826961,1745479838049,-500.0,0.00019999,2]
[358826963,1745479838059,-500.0,0.00019999,2]
[358826965,1745479838069,-300.0,0.00019999,2]
[358826968,1745479838080,-500.0,0.00019999,2]
[358826970,1745479838090,-500.0,0.00019999,2]
[358826972,1745479838099,-500.0,0.00019999,2]
[358826973,1745479838109,-500.0,0.00019999,2]
[358826975,1745479838118,-300.0,0.00019999,2]
[358826977,1745479838128,-500.0,0.00019999,2]
[358826979,1745479838137,-500.0,0.00019999,2]
[358826981,1745479838146,-670.87075064,0.00019999,2]
[358826983,1745479838155,-300.0,0.00019999,2]
[358826985,1745479838165,-500.0,0.00019999,2]
[358826987,1745479838174,-500.0,0.00019999,2]
[358826989,1745479838184,-1644.09672093,0.00019999,2]
[358826991,1745479838195,-55667.37004628,0.00019999,2]
[358826993,1745479838204,-591.98577064,0.00019999,2]
[358826995,1745479838215,-151.84198509,0.00019999,2]
[358826997,1745479838227,-1105.0,0.00019999,2]
[358826999,1745479838240,-1158790.5100231,0.0002,2]
[358827001,1745479838251,-213.31021645,0.0002,2]
[358827003,1745479838260,-986874.00792822,0.0002,2]
[358827005,1745479838272,-1483190.50259273,0.0002,2]
[358827007,1745479838283,-7225.20922645,0.0002,2]
[358827009,1745479838294,-301.03699794,0.0002,2]
[358827011,1745479838304,-1481.6270868,0.0002,2]
[358827013,1745479838314,-41232.86796624,0.0002,2]
[358827015,1745479838324,-3051.07808024,0.0002,2]
[358827017,1745479838333,-1804.6,0.0002,2]
[358827019,1745479838344,-6653.0,0.0002,2]
[358827021,1745479838353,-5648.70171331,0.0002,2]
[358827023,1745479838362,-943729.90133629,0.0002,2]
[358827112,1745479840296,-1173.13470736,0.00019889,2]
[358827113,1745479843894,-977.79908694,0.00019889,2]
[358827114,1745479843906,-203.15546474,0.00019898,2]
[358827115,1745479843917,-500.0,0.00019898,2]
[358827116,1745479843927,-500.0,0.00019898,2]
[358827117,1745479843939,-500.0,0.00019898,2]
[358827118,1745479843950,-500.0,0.00019898,2]
[358827119,1745479843959,-328.7145525,0.00019898,2]
[358827120,1745479843970,-805.11741389,0.000199,2]
[358827165,1745479853079,1143.08,0.00018295,2]
[358827166,1745479888908,177.24751,0.0002,23]
[358827167,1745479893771,302.43876,0.00037808,60]
[358827168,1745479895261,302.43876,0.00019973,14]
[358827169,1745479897463,302.43876,0.0002,4]
[358827170,1745479900409,302.43876,0.00019899,7]
[358827171,1745479919017,1500.00099541,0.00037808,60]
[358827172,1745479927275,32732.0,0.00037808,60]
[358827173,1745479934633,200.0,0.00025,30]
[358827174,1745479935168,200.0,0.00025,30]
[358827175,1745479935704,200.0,0.00025,30]
[358827176,1745479936169,200.0,0.00025,30]
[358827177,1745479936628,216.0,0.00025,30]
[358827178,1745480103240,10000.0,0.00032,60]
[358827179,1745480103342,31844.63186667,0.00029,120]
[358827180,1745480193607,177.24751,0.000248,34]
[358827181,1745480193761,177.24751,0.000223,28]
[358827182,1745480358704,1000.0,0.00018948,2]
[358827183,1745480438558,200.0,0.00037808,60]
[358827184,1745480534026,967.24,0.0001895,2]
[358827185,1745480534723,967.24,0.00026056,120]
[358827186,1745480535098,967.24,0.00028425,120]
[358827187,1745480701873,155.0,0.00023,30]
[358827188,1745480702220,155.0,0.00024164,30]
[358827189,1745480782660,2000.0,0.00019,2]
[358827190,1745480782682,2000.0,0.00019,2]
[358827191,1745480782702,2000.0,0.00019,2]
[358827192,1745480782723,1908.0,0.00019,2]
[358827193,1745480813613,92.0,0.00019,2]
[358827194,1745480813636,101.89,0.00019,2]
[358827195,1745480865678,2593.51279231,0.00037808,60]
[358827196,1745480906820,527.3021604,0.00037808,120]
[358827197,1745480949590,250.0,0.00017,2]
[358827198,1745480950765,300.0,0.00019,2]
[358827199,1745480961127,735.23249726,0.00018931,2]
[358827200,1745480973450,612.87750274,0.00016999,2]
[358827201,1745480973483,473.04249726,0.00016999,2]
[358827202,1745481016796,1526.95750274,0.00018897,2]
[358827203,1745481016818,1227.39249726,0.00018897,2]
[358827204,1745481020918,289934.24801537,0.00037808,60]
[358827214,1745481031966,-150.0,0.00019058,2]
[358827215,1745481031976,-250.0,0.00019079,2]
[358827216,1745481031987,-154.58,0.0001912,2]
[358827217,1745481031997,-250.0,0.00019131,2]
[358827218,1745481032007,-734.52,0.00019227,2]
[358827219,1745481032016,-1085.92,0.00019262,2]
[358827220,1745481032026,-735.23249726,0.00019375,2]
[358827221,1745481032035,-500.0,0.00019534,2]
[358827222,1745481032044,-500.0,0.00019562,2]
[358827223,1745481032054,-735.23249726,0.00019601,2]
[358827224,1745481032063,-450.18,0.000197,2]
[358827225,1745481032073,-2301.26,0.000197,2]
[358827226,1745481032083,-450.18,0.000197,2]
[358827227,1745481032093,-166.66,0.00019735,2]
[358827228,1745481032103,-335.17722252,0.00019752,2]
[358827229,1745481032112,-168.5608747,0.00019799,2]
[358827230,1745481032121,-1200.0,0.00019799,2]
[358827231,1745481032131,-150.0,0.000198,2]
[358827232,1745481032140,-450.18,0.000198,2]
[358827233,1745481032149,-450.18,0.000198,2]
[358827234,1745481032159,-450.18,0.000198,2]
[358827235,1745481032169,-151.42,0.00019872,2]
[358827236,1745481032179,-150.0,0.00019872,2]
[358827237,1745481032189,-168.22704756,0.00019886,2]
[358827238,1745481032198,-735.23249726,0.00019886,2]
[358827239,1745481032207,-1541.6969,0.00019886,2]
[358827240,1745481032217,-637.8195,0.00019886,2]
[358827241,1745481032226,-168.22704755,0.00019888,2]
[358827242,1745481032236,-168.22704755,0.0001989,2]
[358827243,1745481032245,-168.22704755,0.00019892,2]
[358827244,1745481032255,-168.22704755,0.00019894,2]
[358827245,1745481032264,-168.22704755,0.00019896,2]
[358827246,1745481032273,-168.22704755,0.00019898,2]
[358827247,1745481032283,-410.2909,0.000199,2]
[358827248,1745481032293,-2500.0,0.000199,2]
[358827250,1745481032303,-168.22704755,0.000199,2]
[358827252,1745481032312,-898.94,0.000199,2]
[358827254,1745481032321,-500.0,0.00019973,2]
[358827256,1745481032331,-1027.919,0.00019986,2]
[358827258,1745481032340,-3437.9381992,0.00019986,2]
[358827260,1745481032349,-79332.0657386,0.00019986,2]
[358827262,1745481032358,-6929.630335,0.00019986,2]
[358827264,1745481032368,-207.4,0.00019988,2]
[358827266,1745481032377,-151.0,0.00019988,2]
[358827268,1745481032386,-668.65185757,0.00019988,2]
[358827270,1745481032395,-151.0,0.00019988,2]
[358827272,1745481032403,-540.34,0.0001999,2]
[358827274,1745481032412,-540.34,0.0001999,2]
[358827276,1745481032421,-1217.4295604,0.0001999,2]
[358827278,1745481032431,-1217.4295604,0.0001999,2]
[358827280,1745481032440,-1217.4295604,0.0001999,2]
[358827281,1745481032449,-221.13578017,0.00019998,2]
[358827284,1745481032458,-500.0,0.00019998,2]
[358827286,1745481032468,-500.0,0.00019998,2]
[358827287,1745481032478,-630.10018675,0.00019998,2]
[358827289,1745481032488,-300.0,0.00019999,2]
[358827291,1745481032498,-300.0,0.00019999,2]
[358827293,1745481032507,-300.0,0.00019999,2]
[358827295,1745481032517,-670.87075064,0.00019999,2]
[358827297,1745481032527,-300.0,0.00019999,2]
[358827299,1745481032537,-500.0,0.00019999,2]
[358827301,1745481032547,-500.0,0.00019999,2]
[358827303,1745481032558,-300.0,0.00019999,2]
[358827305,1745481032568,-500.0,0.00019999,2]
[358827307,1745481032578,-500.0,0.00019999,2]
[358827309,1745481032588,-500.0,0.00019999,2]
[358827311,1745481032598,-500.0,0.00019999,2]
[358827313,1745481032608,-500.0,0.00019999,2]
[358827315,1745481032618,-500.0,0.00019999,2]
[358827317,1745481032628,-500.0,0.00019999,2]
[358827319,1745481032640,-500.0,0.00019999,2]
[358827321,1745481032650,-500.0,0.00019999,2]
[358827323,1745481032660,-500.0,0.00019999,2]
[358827325,1745481032669,-500.0,0.00019999,2]
[358827327,1745481032680,-151.84198509,0.00019999,2]
[358827329,1745481032689,-1625.57781787,0.00019999,2]
[358827331,1745481032700,-55667.37004628,0.00019999,2]
[358827333,1745481032710,-1110.0,0.00019999,2]
[358827335,1745481032719,-109579.90654294,0.0002,2]
[358827340,1745481032757,-924.81389,0.0002,2]
[358827342,1745481032770,-796.98009551,0.0002,2]
[358827345,1745481032787,-700.0,0.0002,2]
[358827625,1745481038337,-589.97551441,0.00019999,2]
[358827628,1745481038349,-512.02448559,0.00019999,2]
[358827630,1745481038359,-203.17481142,0.0002,2]
[358827632,1745481038372,-5933.55,0.0002,2]
[358827634,1745481038385,-10272.5287,0.0002,2]
[358827637,1745481038397,-14450.025,0.0002,2]
[358827639,1745481038411,-35540.7,0.0002,2]
[358827641,1745481038424,-397.88165262,0.0002,2]
[358827644,1745481038442,-19218.23614524,0.0002,2]
[358827646,1745481038453,-635.05590265,0.0002,2]
[358827650,1745481038483,-960137.65728272,0.0002,2]
[358827652,1745481038495,-213.31021645,0.0002,2]
[358827654,1745481038507,-1366282.63626788,0.0002,2]
[358827657,1745481038523,-2494318.525,0.0002,2]
[358827661,1745481038556,-1073.999995,0.0002,2]
[358827851,1745481040450,-331.07,0.0002,2]
[358827855,1745481040480,-4682.02666871,0.0002,2]
[358827857,1745481040492,-1149.49164026,0.0002,2]
[358827873,1745481040671,-14784.51089619,0.0002,2]
[358827875,1745481040683,-1712.74197695,0.0002,2]
[358827886,1745481040773,-353.88917786,0.0002,2]
[358828381,1745481046062,-450.18,0.000197,2]
[358828382,1745481046071,-2271.5368056,0.0002,2]
[358828384,1745481046083,-273.05590904,0.0002,2]
[358828386,1745481046096,-922.0,0.0002,2]
[358828388,1745481046108,-2150.10003,0.0002,2]
[358828407,1745481046357,-3850.43724193,0.0002,2]
[358828484,1745481052018,772.60750274,0.00019,2]
[358828485,1745481052041,875.65063388,0.00019,2]
[358828486,1745481155569,10497.0,0.000378,60]
[358828487,1745481218344,849.647,0.00037808,60]
[358828488,1745481241590,600.0,0.00037808,60]
[358828489,1745481257398,500.0,0.000378,60]
[358828490,1745481265954,600.0,0.00037808,60]
[358828491,1745481299716,154.571872,0.00019973,14]
[358828493,1745481612707,158.21997,0.00019973,14]
[358828494,1745481623621,1006.179196,0.00037808,60]
[358828495,1745481627876,1006.179196,0.0002,4]
[358828496,1745481628153,1006.179196,0.00019973,14]
[358828497,1745481628185,164.203445,0.00019973,14]
[358828498,1745481628448,1006.179196,0.00019973,14]
[358828499,1745481628842,1006.179196,0.00019973,14]
[358828500,1745481629152,1006.179196,0.00019973,14]
[358828501,1745481629501,1006.179196,0.00019973,14]
[358828502,1745481632005,162.96537,0.00019973,14]
[358828503,1745481761894,1124.34936612,0.00018978,2]
[358828504,1745481761918,16.76063388,0.00018978,2]
[358828506,1745481835059,152.7,0.00015176,2]
[358828507,1745481904795,283.1,0.0001897,2]
[358828508,1745481943732,162.13,0.00018958,2]
[358828509,1745481980752,1385.30936612,0.00018972,2]
[358828510,1745481980775,599.81063388,0.00018972,2]
[358828692,1745482232046,-415.35954025,0.00019194,2]
[358828693,1745482232128,-584.64045975,0.00019194,2]
[358828694,1745482232139,-250.0,0.00019202,2]
[358828695,1745482232149,-150.0,0.0001921,2]
[358828696,1745482232159,-150.0,0.00019449,2]
[358828697,1745482232170,-237.44741666,0.0001965,2]
[358828698,1745482232179,-796.93242777,0.000197,2]
[358828699,1745482232189,-237.44741664,0.00019768,2]
[358828700,1745482232200,-395.80328687,0.00019796,2]
[358828701,1745482232209,-325.3189821,0.00019799,2]
[358828702,1745482232218,-300.0,0.00019885,2]
[358828703,1745482232228,-1200.0,0.00019885,2]
[358828704,1745482232237,-237.44741664,0.00019886,2]
[358828705,1745482232247,-497.7891,0.00019886,2]
[358828706,1745482232256,-630.6525,0.00019886,2]
[358828707,1745482232265,-876.0,0.00019898,2]
[358828708,1745482232274,-198.901,0.00019898,2]
[358828709,1745482232284,-257.099,0.00019898,2]
[358828710,1745482232293,-871.0,0.00019898,2]
[358828711,1745482232304,-3986.0,0.00019898,2]
[358828712,1745482232314,-678.724,0.000199,2]
[358828713,1745482232324,-1481.0317,0.000199,2]
[358828714,1745482232334,-500.0,0.000199,2]
[358828715,1745482232343,-182.0453235,0.000199,2]
[358828716,1745482232353,-450.18,0.000199,2]
[358828717,1745482232362,-450.18,0.000199,2]
[358828718,1745482232371,-219.38497478,0.000199,2]
[358828719,1745482232381,-790.24,0.000199,2]
[358828720,1745482232390,-194.84082848,0.000199,2]
[358828721,1745482232400,-166.68,0.00019908,2]
[358828722,1745482232409,-508.0,0.00019918,2]
[358828723,1745482232419,-1982.0,0.00019973,2]
[358828724,1745482232429,-506.72470226,0.00019973,2]
[358828725,1745482232438,-204.12031234,0.00019973,2]
[358828726,1745482232448,-500.0,0.00019973,2]
[358828727,1745482232458,-500.0,0.00019985,2]
[358828728,1745482232467,-641.07013073,0.00019985,2]
[358828729,1745482232478,-210.04391451,0.00019985,2]
[358828730,1745482232487,-22961.6879014,0.00019986,2]
[358828731,1745482232498,-5502.8507937,0.00019986,2]
[358828733,1745482232507,-10697.8989618,0.00019986,2]
[358828735,1745482232516,-34499.81744961,0.00019986,2]
[358828737,1745482232528,-6434.78827933,0.00019986,2]
[358828740,1745482232539,-461.18043586,0.00019986,2]
[358828742,1745482232552,-1077.050005,0.00019986,2]
[358828744,1745482232564,-1100.0,0.00019986,2]
[358828746,1745482232575,-52939.975012,0.00019986,2]
[358828748,1745482232585,-9141.1818833,0.00019986,2]
[358828750,1745482232595,-579.11606372,0.00019986,2]
[358828752,1745482232604,-855.539,0.00019988,2]
[358828754,1745482232614,-207.4,0.00019988,2]
[358828756,1745482232623,-151.0,0.00019988,2]
[358828758,1745482232633,-668.65185757,0.00019988,2]
[358828760,1745482232643,-151.0,0.00019988,2]
[358828763,1745482232654,-312.66067017,0.00019999,2]
[358828765,1745482232663,-300.0,0.00019999,2]
[358828767,1745482232673,-500.0,0.00019999,2]
[358828769,1745482232683,-500.0,0.00019999,2]
[358828770,1745482232692,-241.09376131,0.00019999,2]
[358828773,1745482232703,-500.0,0.00019999,2]
[358828775,1745482232713,-500.0,0.00019999,2]
[358828777,1745482232723,-500.0,0.00019999,2]
[358828779,1745482232733,-500.0,0.00019999,2]
[358828781,1745482232742,-500.0,0.00019999,2]
[358828783,1745482232752,-540.07694186,0.00019999,2]
[358828785,1745482232762,-300.0,0.00019999,2]
[358828787,1745482232772,-500.0,0.00019999,2]
[358828789,1745482232782,-500.0,0.00019999,2]
[358828791,1745482232791,-500.0,0.00019999,2]
[358828793,1745482232801,-500.0,0.00019999,2]
[358828795,1745482232811,-1644.09672093,0.00019999,2]
[358828797,1745482232821,-329.8698023,0.00019999,2]
[358828799,1745482232830,-994.0,0.0002,2]
[358828801,1745482232840,-32644.33904975,0.0002,2]
[358828940,1745482238119,-260.5148479,0.00019898,2]
[358828941,1745482238188,-923.2623015,0.00019898,2]
[358828942,1745482238242,-637.66583568,0.00019898,2]
[358828943,1745482238255,-322.20186833,0.00019898,2]
[358828944,1745482238267,-1215.79876236,0.00019898,2]
[358828945,1745482238279,-307.29964846,0.00019898,2]
[358828946,1745482238291,-1174.3368561,0.00019898,2]
[358828947,1745482238302,-948.91987967,0.00019898,2]
[358828948,1745482238313,-546750.9159618,0.0002,2]
[358828949,1745482238323,-213.31021645,0.0002,2]
[358828950,1745482238335,-186175.68573495,0.0002,2]
[358828951,1745482238344,-3950.0,0.0002,2]
[358828952,1745482238354,-1250.73651205,0.0002,2]
[358828953,1745482238364,-11833.08510451,0.0002,2]
[358828954,1745482238373,-1009.17759778,0.0002,2]
[358828955,1745482238383,-1757.19290998,0.0002,2]
[358828956,1745482238392,-150.0,0.0002,2]
[358828957,1745482238402,-569.02234766,0.0002,2]
[358828958,1745482238412,-209.0,0.0002,2]
[358828961,1745482238422,-209.0,0.0002,2]
[358828963,1745482238433,-209.0,0.0002,2]
[358828965,1745482238444,-242.0,0.0002,2]
[358828967,1745482238457,-242.0,0.0002,2]
[358828968,1745482238468,-242.0,0.0002,2]
[358828970,1745482238477,-242.0,0.0002,2]
[358828972,1745482238488,-242.0,0.0002,2]
[358828974,1745482238497,-242.0,0.0002,2]
[358828976,1745482238507,-242.0,0.0002,2]
[358828978,1745482238517,-242.0,0.0002,2]
[358828980,1745482238527,-242.0,0.0002,2]
[358828982,1745482238536,-242.0,0.0002,2]
[358828985,1745482238546,-242.0,0.0002,2]
[358828988,1745482238555,-242.0,0.0002,2]
[358828991,1745482238564,-242.0,0.0002,2]
[358828994,1745482238574,-242.0,0.0002,2]
[358828996,1745482238584,-242.0,0.0002,2]
[358828998,1745482238593,-242.0,0.0002,2]
[358829000,1745482238603,-242.0,0.0002,2]
[358829002,1745482238613,-242.0,0.0002,2]
[358829004,1745482238623,-242.0,0.0002,2]
[358829006,1745482238633,-250.0,0.0002,2]
[358829008,1745482238642,-250.0,0.0002,2]
[358829010,1745482238652,-250.0,0.0002,2]
[358829012,1745482238662,-250.0,0.0002,2]
[358829014,1745482238671,-250.0,0.0002,2]
[358829016,1745482238681,-250.0,0.0002,2]
[358829018,1745482238690,-250.0,0.0002,2]
[358829020,1745482238699,-250.0,0.0002,2]
[358829022,1745482238709,-250.0,0.0002,2]
[358829024,1745482238719,-250.0,0.0002,2]
[358829026,1745482238728,-304.9,0.0002,2]
[358829028,1745482238739,-1125.970198,0.0002,2]
[358829030,1745482238750,-1125.970198,0.0002,2]
[358829032,1745482238760,-1125.970198,0.0002,2]
[358829034,1745482238770,-1125.970198,0.0002,2]
[358829036,1745482238784,-1125.970198,0.0002,2]
[358829039,1745482238803,-163.628882,0.0002,2]
[358829041,1745482238813,-163.628882,0.0002,2]
[358829043,1745482238823,-163.628882,0.0002,2]
[358829045,1745482238833,-163.628882,0.0002,2]
[358829047,1745482238843,-163.628882,0.0002,2]
[358829049,1745482238853,-597410.00481948,0.0002,2]
[358829132,1745482239798,-2494318.525,0.0002,2]
[358829192,1745482240330,-617.23609784,0.0002,2]
[358829194,1745482240342,-20477.47832502,0.0002,2]
[358829196,1745482240354,-9054.74075626,0.0002,2]
[358829198,1745482240365,-820.53257468,0.0002,2]
[358829202,1745482240394,-266.68251673,0.0002,2]
[358829222,1745482240572,-1717.60729136,0.0002,2]
[358829554,1745482244132,-283.64455414,0.00019898,2]
[358829557,1745482244144,-708.55240779,0.00019898,2]
[358829559,1745482244156,-140.80303807,0.00019898,2]
[358829561,1745482244165,-358.32124057,0.0002,2]
[358829563,1745482244177,-533.67875943,0.0002,2]
[358829565,1745482244187,-217.20584321,0.0002,2]
[358829767,1745482246133,-687.66672938,0.0002,2]
[358829802,1745482246462,-182452.38349471,0.0002,2]
[358829804,1745482246475,-62554.27180934,0.0002,2]
[358829807,1745482246488,-6487.33388835,0.0002,2]
[358829809,1745482246500,-486.14657231,0.0002,2]
[358830132,1745482292293,163.628883,0.00019973,14]
[358830133,1745482314450,187.661699,0.00037808,60]
[358830134,1745482318181,187.661699,0.00019973,14]
[358830135,1745482318479,187.661699,0.00019973,14]
[358830136,1745482318796,187.661699,0.00019973,14]
[358830137,1745482319659,187.661699,0.00019973,14]
[358830138,1745482320203,187.661699,0.00019973,14]
[358830139,1745482323594,187.661699,0.0002,4]
[358830140,1745482328267,638.049779,0.00037808,60]
[358830141,1745482330340,638.049779,0.00019973,14]
[358830142,1745482330660,638.049779,0.00019973,14]
[358830143,1745482330964,638.049779,0.00019973,14]
[358830144,1745482331273,69.446111,0.00019973,14]
[358830145,1745482331301,568.603668,0.00019973,14]
[358830146,1745482331833,638.049779,0.00019973,14]
[358830147,1745482335105,638.049779,0.0002,4]
[358830148,1745482362338,1074.86,0.00017096,2]
[358830149,1745482439495,150.0,0.00018995,2]
[358830150,1745482558175,175.32936612,0.00018968,2]
[358830151,1745482558197,2000.0,0.00018968,2]
[358830152,1745482558221,2000.0,0.00018968,2]
[358830153,1745482558245,2000.0,0.00018968,2]
[358830154,1745482558270,2000.0,0.00018968,2]
[358830155,1745482558291,1937.78063388,0.00018968,2]
[358830156,1745482574618,62.21936612,0.00018983,2]
[358830157,1745482574642,161.14063388,0.00018983,2]
[358830158,1745482648771,-288.8479,0.00019006,2]
[358830159,1745482653235,-343.42128,0.00019006,2]
[358830160,1745482656496,-191.2694,0.00019006,2]
[358830161,1745482661499,-176.46142,0.00019006,2]
[358830162,1745482784908,250.0,0.00017,2]
[358830163,1745482785993,300.0,0.00019,2]
[358830164,1745482826593,-171.56441662,0.0001901,2]
[358830165,1745482832640,-39.06188338,0.0001901,2]
[358830166,1745482844378,386.89,0.00018953,2]
[358830167,1745482845200,386.89,0.0002606,120]
[358830168,1745482845409,386.89,0.00028429,120]
[358830169,1745482957809,1100.933,0.0002,3]
[358830170,1745482983171,13926.95,0.000378,60]
[358830171,1745483030678,376.653809,0.00019973,14]
[358830172,1745483032231,376.653809,0.00037808,60]
[358830173,1745483035267,376.653809,0.0002,4]
[358830174,1745483128825,428.83784625,0.00023,120]
[358830175,1745483132846,151.0447626,0.0002,120]
[358830177,1745483232006,376.73126023,0.0002301,120]
[358830178,1745483292277,169.04690163,0.00027,120]
[358830179,1745483310754,1994.70064824,0.00037808,60]
[358830180,1745483314022,188.17350405,0.00028799,120]
[358830181,1745483316717,427.20937236,0.00032,120]
[358830192,1745483428459,901.96936612,0.00018921,2]
[358830193,1745483428482,285.59063388,0.00018921,2]
[358830202,1745483432219,-570.55,0.00019039,2]
[358830204,1745483432229,-250.0,0.00019054,2]
[358830206,1745483432240,-150.0,0.00019068,2]
[358830207,1745483432250,-207.4,0.00019098,2]
[358830208,1745483432259,-1200.0,0.00019109,2]
[358830209,1745483432269,-9879.0,0.0001911,2]
[358830210,1745483432280,-230.0,0.0001919,2]
[358830211,1745483432289,-1074.86,0.00019359,2]
[358830212,1745483432300,-166.68,0.00019656,2]
[358830213,1745483432309,-367.7858867,0.00019799,2]
[358830214,1745483432319,-150.0,0.000198,2]
[358830215,1745483432329,-1905.4719,0.00019886,2]
[358830216,1745483432339,-1291.191,0.00019886,2]
[358830217,1745483432348,-901.14393437,0.00019888,2]
[358830218,1745483432358,-901.14393434,0.00019889,2]
[358830219,1745483432368,-523.78191945,0.0001989,2]
[358830220,1745483432378,-901.14393434,0.00019891,2]
[358830221,1745483432388,-901.14393434,0.00019892,2]
[358830222,1745483432397,-901.14393434,0.00019893,2]
[358830223,1745483432407,-901.14393434,0.00019895,2]
[358830224,1745483432416,-901.14393434,0.00019896,2]
[358830225,1745483432426,-901.14393434,0.00019897,2]
[358830226,1745483432435,-901.14393434,0.00019899,2]
[358830227,1745483432444,-591.3988,0.000199,2]
[358830228,1745483432454,-736.31206913,0.000199,2]
[358830229,1745483432469,-171.11988507,0.000199,2]
[358830230,1745483432479,-450.18,0.000199,2]
[358830231,1745483432490,-450.18,0.000199,2]
[358830232,1745483432500,-450.18,0.000199,2]
[358830233,1745483432510,-161.75,0.000199,2]
[358830234,1745483432520,-150.0,0.000199,2]
[358830235,1745483432530,-150.0,0.000199,2]
[358830236,1745483432540,-161.75,0.000199,2]
[358830237,1745483432549,-161.75,0.000199,2]
[358830238,1745483432559,-193.26,0.000199,2]
[358830239,1745483432570,-150.0,0.000199,2]
[358830240,1745483432580,-161.75,0.000199,2]
[358830241,1745483432589,-150.0,0.000199,2]
[358830242,1745483432599,-150.0,0.000199,2]
[358830244,1745483432609,-161.75,0.000199,2]
[358830245,1745483432618,-150.0,0.000199,2]
[358830246,1745483432628,-161.75,0.000199,2]
[358830247,1745483432637,-877.53989908,0.000199,2]
[358830248,1745483432647,-901.14393434,0.000199,2]
[358830249,1745483432658,-982.53969473,0.000199,2]
[358830250,1745483432668,-194.84082848,0.000199,2]
[358830251,1745483432678,-150.0,0.000199,2]
[358830252,1745483432688,-1000.0,0.0001995,2]
[358830253,1745483432698,-508.35949977,0.00019973,2]
[358830255,1745483432708,-506.41551795,0.00019973,2]
[358830257,1745483432721,-500.0,0.00019973,2]
[358830258,1745483432731,-500.0,0.00019973,2]
[358830259,1745483432740,-500.0,0.00019985,2]
[358830260,1745483432751,-584.3780376,0.00019985,2]
[358830261,1745483432762,-8629.7256624,0.00019986,2]
[358830262,1745483432773,-60374.90898419,0.00019986,2]
[358830263,1745483432786,-3046.62826231,0.00019986,2]
[358830264,1745483432797,-298.86,0.00019986,2]
[358830265,1745483432810,-2476.80862768,0.00019986,2]
[358830266,1745483432822,-351.46963395,0.00019986,2]
[358830267,1745483432840,-653.51,0.00019986,2]
[358830268,1745483432853,-40690.72643277,0.00019986,2]
[358830269,1745483432863,-4377.6069285,0.00019986,2]
[358830270,1745483432874,-73675.90642744,0.00019986,2]
[358830271,1745483432884,-178.09142754,0.00019988,2]
[358830272,1745483432895,-151.0,0.00019988,2]
[358830273,1745483432905,-266.75984515,0.00019988,2]
[358830274,1745483432915,-151.0,0.00019988,2]
[358830275,1745483432925,-1210.962,0.0001999,2]
[358830276,1745483432935,-300.0,0.00019999,2]